[Event "Early-Titled-Tuesday-Blitz-January-16-2024"]
[Site "Chess.com"]
[Date "2024.01.16"]
[Round "8"]
[White "JoliyRoger"]
[Black "Millerkallpa"]
[Result "0-1"]
[WhiteElo "2447"]
[BlackElo "2174"]
[TimeControl "180+1"]
[EndTime "9:32:27 PST"]
[Termination "Millerkallpa won on time"]

1. d4 {[%clk 0:03:00.9]} 1... Nf6 {[%clk 0:02:59]} 2. c4 {[%clk 0:03:01.4]} 2...
e6 {[%clk 0:02:59.3]} 3. Nc3 {[%clk 0:03:00.8]} 3... d5 {[%clk 0:02:59.3]} 4.
Nf3 {[%clk 0:03:00]} 4... c5 {[%clk 0:02:59.2]} 5. cxd5 {[%clk 0:02:59.5]} 5...
Nxd5 {[%clk 0:02:58.6]} 6. e3 {[%clk 0:02:56]} 6... Nc6 {[%clk 0:02:57.3]} 7.
Bb5 {[%clk 0:02:55.8]} 7... Be7 {[%clk 0:02:43.8]} 8. Ne5 {[%clk 0:02:49.9]}
8... Qc7 {[%clk 0:02:34.3]} 9. Nxd5 {[%clk 0:02:47.4]} 9... exd5 {[%clk
0:02:32.3]} 10. O-O {[%clk 0:02:46.2]} 10... O-O {[%clk 0:02:30.7]} 11. Bxc6
{[%clk 0:02:41.4]} 11... bxc6 {[%clk 0:02:31.6]} 12. Bd2 {[%clk 0:02:17.3]}
12... Bf6 {[%clk 0:02:13.6]} 13. Bc3 {[%clk 0:02:00.9]} 13... Bxe5 {[%clk
0:02:12.4]} 14. dxe5 {[%clk 0:02:00.5]} 14... Bf5 {[%clk 0:02:09]} 15. Qf3
{[%clk 0:01:48]} 15... Be4 {[%clk 0:02:05]} 16. Qg3 {[%clk 0:01:48.4]} 16...
Rad8 {[%clk 0:02:00.4]} 17. Rad1 {[%clk 0:01:44.8]} 17... Rfe8 {[%clk
0:01:49.5]} 18. Rfe1 {[%clk 0:01:29]} 18... Re6 {[%clk 0:01:42.1]} 19. f3 {[%clk
0:01:26.5]} 19... Bg6 {[%clk 0:01:42.5]} 20. Qf4 {[%clk 0:01:24]} 20... Rb8
{[%clk 0:01:37.2]} 21. a3 {[%clk 0:01:22.3]} 21... h6 {[%clk 0:01:29.1]} 22. h3
{[%clk 0:01:12.8]} 22... Qb7 {[%clk 0:01:26.1]} 23. g4 {[%clk 0:01:07.8]} 23...
Qb3 {[%clk 0:01:08.6]} 24. Rd2 {[%clk 0:01:06.6]} 24... Rb6 {[%clk 0:00:50.7]}
25. Rg2 {[%clk 0:01:06.1]} 25... Ra6 {[%clk 0:00:47.7]} 26. Rc1 {[%clk
0:00:53.6]} 26... Ra4 {[%clk 0:00:47.5]} 27. Qg3 {[%clk 0:00:43.9]} 27... Rc4
{[%clk 0:00:47.8]} 28. h4 {[%clk 0:00:17]} 28... d4 {[%clk 0:00:47.5]} 29. exd4
{[%clk 0:00:15.3]} 29... cxd4 {[%clk 0:00:47.4]} 30. Bd2 {[%clk 0:00:16]} 30...
Rxc1+ {[%clk 0:00:45]} 31. Bxc1 {[%clk 0:00:15.5]} 31... Qd1+ {[%clk 0:00:45.1]}
32. Kh2 {[%clk 0:00:15.2]} 32... Qxc1 {[%clk 0:00:44.7]} 33. h5 {[%clk
0:00:15.8]} 33... Bh7 {[%clk 0:00:41.6]} 34. Qh4 {[%clk 0:00:16.3]} 34... Qg5
{[%clk 0:00:38.6]} 35. Qf2 {[%clk 0:00:14.7]} 35... Qe3 {[%clk 0:00:34.3]} 36.
Qh4 {[%clk 0:00:11.5]} 36... Qxe5+ {[%clk 0:00:34.2]} 37. f4 {[%clk 0:00:12]}
37... Qxf4+ {[%clk 0:00:33.5]} 0-1

[Event "Early-Titled-Tuesday-Blitz-January-16-2024"]
[Site "Chess.com"]
[Date "2024.01.16"]
[Round "8"]
[White "Arystanner"]
[Black "Zavgorodniy_Sergiy"]
[Result "1-0"]
[WhiteElo "2803"]
[BlackElo "2611"]
[TimeControl "180+1"]
[EndTime "9:32:28 PST"]
[Termination "Arystanner won by resignation"]

1. e4 {[%clk 0:03:00.9]} 1... c5 {[%clk 0:03:00.5]} 2. Nf3 {[%clk 0:03:01]} 2...
d6 {[%clk 0:03:01.1]} 3. Bb5+ {[%clk 0:03:01.5]} 3... Bd7 {[%clk 0:02:58.4]} 4.
Bxd7+ {[%clk 0:03:01.5]} 4... Nxd7 {[%clk 0:02:59.3]} 5. c3 {[%clk 0:03:01.4]}
5... Ngf6 {[%clk 0:02:59.6]} 6. Qe2 {[%clk 0:03:01.4]} 6... e6 {[%clk
0:03:00.2]} 7. d4 {[%clk 0:03:01.5]} 7... cxd4 {[%clk 0:03:01.1]} 8. cxd4 {[%clk
0:03:02.4]} 8... d5 {[%clk 0:03:01.7]} 9. e5 {[%clk 0:03:02.9]} 9... Ne4 {[%clk
0:03:02.4]} 10. O-O {[%clk 0:03:02]} 10... Be7 {[%clk 0:03:02.7]} 11. Nbd2
{[%clk 0:03:01]} 11... Nxd2 {[%clk 0:03:01.8]} 12. Bxd2 {[%clk 0:03:01.6]} 12...
O-O {[%clk 0:03:01.8]} 13. Rac1 {[%clk 0:03:01.9]} 13... Rc8 {[%clk 0:03:00.4]}
14. Rxc8 {[%clk 0:02:58.6]} 14... Qxc8 {[%clk 0:03:00]} 15. Rc1 {[%clk
0:02:56.7]} 15... Qb8 {[%clk 0:02:58.1]} 16. Qb5 {[%clk 0:02:52.9]} 16... Nb6
{[%clk 0:02:51.8]} 17. a4 {[%clk 0:02:46.7]} 17... Rc8 {[%clk 0:02:47.3]} 18. b3
{[%clk 0:02:32.8]} 18... Rxc1+ {[%clk 0:02:42.3]} 19. Bxc1 {[%clk 0:02:33]}
19... Qc8 {[%clk 0:02:39.9]} 20. Bd2 {[%clk 0:02:32.8]} 20... Nd7 {[%clk
0:02:39.6]} 21. h4 {[%clk 0:02:31.4]} 21... a6 {[%clk 0:02:20.1]} 22. Qd3 {[%clk
0:02:31.6]} 22... f6 {[%clk 0:02:08.7]} 23. exf6 {[%clk 0:02:27.2]} 23... Bxf6
{[%clk 0:02:09.6]} 24. g3 {[%clk 0:02:26.8]} 24... Nb8 {[%clk 0:01:49.6]} 25. b4
{[%clk 0:02:20.9]} 25... Nc6 {[%clk 0:01:45.9]} 26. b5 {[%clk 0:02:21.1]} 26...
axb5 {[%clk 0:01:46.8]} 27. axb5 {[%clk 0:02:22]} 27... Ne7 {[%clk 0:01:46.5]}
28. Bf4 {[%clk 0:02:13.2]} 28... Qc4 {[%clk 0:01:43.4]} 29. Qe3 {[%clk
0:01:58.1]} 29... Kf7 {[%clk 0:01:37.4]} 30. Ne5+ {[%clk 0:01:55.5]} 30... Bxe5
{[%clk 0:01:36.7]} 31. Bxe5 {[%clk 0:01:55.7]} 31... Ng6 {[%clk 0:01:27.7]} 32.
Qf3+ {[%clk 0:01:51.9]} 32... Kg8 {[%clk 0:01:19.6]} 33. Qg4 {[%clk 0:01:51.8]}
33... Qc8 {[%clk 0:01:16.7]} 34. Bd6 {[%clk 0:01:48.9]} 34... Qd7 {[%clk
0:01:13.4]} 35. Bc5 {[%clk 0:01:48.6]} 35... Nh8 {[%clk 0:01:08.6]} 36. b6
{[%clk 0:01:38.8]} 36... h6 {[%clk 0:01:03.7]} 37. Qf4 {[%clk 0:01:38.2]} 37...
Qf7 {[%clk 0:00:40.1]} 38. Qb8+ {[%clk 0:01:33.2]} 38... Kh7 {[%clk 0:00:39.8]}
39. Qc7 {[%clk 0:01:33.9]} 39... h5 {[%clk 0:00:39.5]} 40. Bd6 {[%clk
0:01:30.7]} 40... Qf5 {[%clk 0:00:22.9]} 41. Be5 {[%clk 0:01:00.4]} 41... Nf7
{[%clk 0:00:22.8]} 42. Bf4 {[%clk 0:00:59.2]} 42... Qb1+ {[%clk 0:00:20.7]} 43.
Kg2 {[%clk 0:00:59.3]} 43... Qe4+ {[%clk 0:00:20.8]} 44. Kh2 {[%clk 0:00:56.1]}
44... Qf3 {[%clk 0:00:18.2]} 45. Kg1 {[%clk 0:00:55]} 45... Qd1+ {[%clk
0:00:14.2]} 46. Kg2 {[%clk 0:00:54.5]} 46... Kg6 {[%clk 0:00:12.3]} 47. Qxb7
{[%clk 0:00:47.5]} 1-0

[Event "Early-Titled-Tuesday-Blitz-January-16-2024"]
[Site "Chess.com"]
[Date "2024.01.16"]
[Round "8"]
[White "MagnusCarlsen"]
[Black "AryanTari"]
[Result "1/2-1/2"]
[WhiteElo "3300"]
[BlackElo "2943"]
[TimeControl "180+1"]
[EndTime "9:32:29 PST"]
[Termination "Game drawn by repetition"]

1. b4 {[%clk 0:02:59.5]} 1... e5 {[%clk 0:02:56]} 2. a3 {[%clk 0:02:58]} 2... d5
{[%clk 0:02:54.3]} 3. Bb2 {[%clk 0:02:54]} 3... Bd6 {[%clk 0:02:54.2]} 4. Nf3
{[%clk 0:02:51.7]} 4... Qe7 {[%clk 0:02:53.7]} 5. c4 {[%clk 0:02:49.9]} 5...
dxc4 {[%clk 0:02:49.8]} 6. e3 {[%clk 0:02:47.3]} 6... a5 {[%clk 0:02:39.9]} 7.
Bxc4 {[%clk 0:02:38.5]} 7... Nf6 {[%clk 0:02:29]} 8. Nc3 {[%clk 0:02:33.6]} 8...
O-O {[%clk 0:02:21]} 9. Nb5 {[%clk 0:02:30.3]} 9... Be6 {[%clk 0:02:05.7]} 10.
Be2 {[%clk 0:02:19.7]} 10... Nbd7 {[%clk 0:01:54.6]} 11. O-O {[%clk 0:02:19.2]}
11... axb4 {[%clk 0:01:46.9]} 12. axb4 {[%clk 0:02:18.2]} 12... c6 {[%clk
0:01:36.4]} 13. Nxd6 {[%clk 0:02:17.5]} 13... Qxd6 {[%clk 0:01:37.3]} 14. b5
{[%clk 0:02:06.6]} 14... c5 {[%clk 0:01:32]} 15. Qc2 {[%clk 0:02:05.5]} 15... h6
{[%clk 0:01:29.8]} 16. h3 {[%clk 0:02:05.1]} 16... e4 {[%clk 0:01:22.2]} 17. Nh2
{[%clk 0:02:00.7]} 17... Ne5 {[%clk 0:01:10.5]} 18. f4 {[%clk 0:01:56.4]} 18...
Nd3 {[%clk 0:01:04.1]} 19. Bxf6 {[%clk 0:01:35.9]} 19... gxf6 {[%clk 0:01:05]}
20. Rxa8 {[%clk 0:01:28.4]} 20... Rxa8 {[%clk 0:01:04.7]} 21. f5 {[%clk
0:01:28.7]} 21... Bd7 {[%clk 0:00:53.1]} 22. Qc4 {[%clk 0:01:20.3]} 22... Ne5
{[%clk 0:00:42.1]} 23. Qc2 {[%clk 0:01:20.3]} 23... c4 {[%clk 0:00:36.6]} 24.
Ng4 {[%clk 0:01:19.8]} 24... Bxb5 {[%clk 0:00:34.1]} 25. Qxe4 {[%clk 0:01:13.8]}
25... Nxg4 {[%clk 0:00:28.2]} 26. Qxg4+ {[%clk 0:01:05.9]} 26... Kf8 {[%clk
0:00:28.6]} 27. Rd1 {[%clk 0:00:59.8]} 27... Ba4 {[%clk 0:00:27.8]} 28. Ra1
{[%clk 0:00:58.4]} 28... b5 {[%clk 0:00:24]} 29. Bf3 {[%clk 0:00:55.6]} 29...
Rd8 {[%clk 0:00:21.9]} 30. Ra2 {[%clk 0:00:50.9]} 30... Bb3 {[%clk 0:00:21.8]}
31. Ra7 {[%clk 0:00:51]} 31... Qxd2 {[%clk 0:00:15.1]} 32. Qf4 {[%clk
0:00:50.4]} 32... Kg7 {[%clk 0:00:10.9]} 33. Bh5 {[%clk 0:00:44.9]} 33... c3
{[%clk 0:00:09.4]} 34. Qg3+ {[%clk 0:00:31.7]} 34... Kf8 {[%clk 0:00:08.8]} 35.
Qf4 {[%clk 0:00:29.1]} 35... Kg7 {[%clk 0:00:09]} 36. Qg3+ {[%clk 0:00:13.5]}
36... Kf8 {[%clk 0:00:07.3]} 37. Qf4 {[%clk 0:00:09.8]} 37... Kg7 {[%clk
0:00:05.7]} 1/2-1/2

[Event "Early-Titled-Tuesday-Blitz-January-16-2024"]
[Site "Chess.com"]
[Date "2024.01.16"]
[Round "8"]
[White "TrompeterImEther"]
[Black "viktorskliarov"]
[Result "1-0"]
[WhiteElo "2519"]
[BlackElo "2653"]
[TimeControl "180+1"]
[EndTime "9:32:30 PST"]
[Termination "TrompeterImEther won by checkmate"]

1. e4 {[%clk 0:03:00.9]} 1... c5 {[%clk 0:02:59.4]} 2. Nf3 {[%clk 0:03:01]} 2...
Nc6 {[%clk 0:02:53.9]} 3. Bb5 {[%clk 0:03:00.1]} 3... e6 {[%clk 0:02:54]} 4.
Bxc6 {[%clk 0:02:59.8]} 4... bxc6 {[%clk 0:02:54.3]} 5. b3 {[%clk 0:03:00.7]}
5... d6 {[%clk 0:02:43.9]} 6. e5 {[%clk 0:02:59.3]} 6... d5 {[%clk 0:02:32.2]}
7. O-O {[%clk 0:02:49.3]} 7... Ba6 {[%clk 0:02:24]} 8. d3 {[%clk 0:02:49.4]}
8... c4 {[%clk 0:02:24]} 9. bxc4 {[%clk 0:02:33]} 9... dxc4 {[%clk 0:02:21]} 10.
d4 {[%clk 0:02:33.5]} 10... c5 {[%clk 0:02:09.3]} 11. c3 {[%clk 0:02:29.3]}
11... Qd7 {[%clk 0:02:02.7]} 12. Ba3 {[%clk 0:02:27.6]} 12... Nh6 {[%clk
0:01:33.4]} 13. Nbd2 {[%clk 0:02:13.1]} 13... cxd4 {[%clk 0:01:16.3]} 14. Bxf8
{[%clk 0:02:12.7]} 14... Kxf8 {[%clk 0:01:16.1]} 15. Nxd4 {[%clk 0:02:10.9]}
15... Nf5 {[%clk 0:01:07.8]} 16. Ne4 {[%clk 0:01:53.1]} 16... Nxd4 {[%clk
0:00:30.7]} 17. Nc5 {[%clk 0:01:33.5]} 17... Qc6 {[%clk 0:00:26.9]} 18. Qxd4
{[%clk 0:01:31.8]} 18... Rc8 {[%clk 0:00:18.9]} 19. Ne4 {[%clk 0:01:27]} 19...
Bb7 {[%clk 0:00:17.4]} 20. f3 {[%clk 0:01:25.6]} 20... Qb6 {[%clk 0:00:16.8]}
21. Qxb6 {[%clk 0:01:23.1]} 21... axb6 {[%clk 0:00:17.7]} 22. Nd6 {[%clk
0:01:23.2]} 22... Rc7 {[%clk 0:00:17.8]} 23. Rab1 {[%clk 0:01:23.4]} 23... Bd5
{[%clk 0:00:11.7]} 24. Rxb6 {[%clk 0:01:23.4]} 24... Ke7 {[%clk 0:00:11.8]} 25.
a4 {[%clk 0:01:04.3]} 25... Ra8 {[%clk 0:00:11.4]} 26. Ra1 {[%clk 0:01:03.3]}
26... Rca7 {[%clk 0:00:10.8]} 27. Rb4 {[%clk 0:01:02.7]} 27... f6 {[%clk
0:00:10.5]} 28. f4 {[%clk 0:01:02.6]} 28... g5 {[%clk 0:00:09.7]} 29. Nb5 {[%clk
0:00:49.4]} 29... Rd7 {[%clk 0:00:07]} 30. exf6+ {[%clk 0:00:49.7]} 30... Kxf6
{[%clk 0:00:06.7]} 31. fxg5+ {[%clk 0:00:50]} 31... Kxg5 {[%clk 0:00:07.3]} 32.
g3 {[%clk 0:00:44]} 32... Kf5 {[%clk 0:00:03.8]} 33. a5 {[%clk 0:00:43.8]} 33...
Ke4 {[%clk 0:00:03.4]} 34. a6 {[%clk 0:00:39.3]} 34... Kd3 {[%clk 0:00:03.9]}
35. Rb2 {[%clk 0:00:32.8]} 35... Bc6 {[%clk 0:00:02.6]} 36. Rd1+ {[%clk
0:00:15.9]} 36... Ke3 {[%clk 0:00:03]} 37. Nd4 {[%clk 0:00:16.3]} 37... e5
{[%clk 0:00:02.5]} 38. Re2# {[%clk 0:00:16.1]} 1-0

[Event "Early-Titled-Tuesday-Blitz-January-16-2024"]
[Site "Chess.com"]
[Date "2024.01.16"]
[Round "8"]
[White "MasterofMasters2006"]
[Black "tusplingher"]
[Result "0-1"]
[WhiteElo "2247"]
[BlackElo "2484"]
[TimeControl "180+1"]
[EndTime "9:32:37 PST"]
[Termination "tusplingher won on time"]

1. d4 {[%clk 0:02:53.3]} 1... Nf6 {[%clk 0:02:57.3]} 2. c4 {[%clk 0:02:33.1]}
2... e6 {[%clk 0:02:55.5]} 3. Nf3 {[%clk 0:02:32.1]} 3... b6 {[%clk 0:02:53.9]}
4. g3 {[%clk 0:02:31.9]} 4... Bb7 {[%clk 0:02:53.9]} 5. Bg2 {[%clk 0:02:32.6]}
5... Bb4+ {[%clk 0:02:51.8]} 6. Bd2 {[%clk 0:02:32.1]} 6... Qe7 {[%clk
0:02:47.5]} 7. O-O {[%clk 0:02:30]} 7... Bxd2 {[%clk 0:02:46.4]} 8. Qxd2 {[%clk
0:02:29.9]} 8... O-O {[%clk 0:02:42.9]} 9. Nc3 {[%clk 0:02:29.5]} 9... Ne4
{[%clk 0:02:41.4]} 10. Qc2 {[%clk 0:02:21.8]} 10... Nxc3 {[%clk 0:02:36.8]} 11.
Qxc3 {[%clk 0:02:22]} 11... d6 {[%clk 0:02:33.4]} 12. Rfe1 {[%clk 0:02:20.6]}
12... Nd7 {[%clk 0:02:21.3]} 13. e4 {[%clk 0:02:16.9]} 13... e5 {[%clk
0:02:20.5]} 14. Rad1 {[%clk 0:02:10]} 14... Rfe8 {[%clk 0:02:10.3]} 15. b4
{[%clk 0:02:02.1]} 15... exd4 {[%clk 0:02:00.6]} 16. Nxd4 {[%clk 0:02:02]} 16...
Qf6 {[%clk 0:01:37.9]} 17. Qd2 {[%clk 0:01:49.8]} 17... Rab8 {[%clk 0:01:25.6]}
18. Nb5 {[%clk 0:01:38.8]} 18... Ne5 {[%clk 0:00:55.1]} 19. f4 {[%clk
0:01:33.9]} 19... Nxc4 {[%clk 0:00:47.7]} 20. Qc2 {[%clk 0:01:24]} 20... d5
{[%clk 0:00:39.6]} 21. e5 {[%clk 0:00:53.7]} 21... Qe7 {[%clk 0:00:29.5]} 22. a3
{[%clk 0:00:28.3]} 22... a6 {[%clk 0:00:23]} 23. Nd4 {[%clk 0:00:21.3]} 23...
Nxa3 {[%clk 0:00:21.1]} 24. Qb3 {[%clk 0:00:19.9]} 24... Nb5 {[%clk 0:00:21.1]}
25. Nxb5 {[%clk 0:00:18.9]} 25... axb5 {[%clk 0:00:21.3]} 26. Bxd5 {[%clk
0:00:19.5]} 26... c6 {[%clk 0:00:15.6]} 27. Be4 {[%clk 0:00:14.9]} 27... Red8
{[%clk 0:00:13.2]} 28. Kg2 {[%clk 0:00:08.3]} 28... Rxd1 {[%clk 0:00:12.2]} 29.
Rxd1 {[%clk 0:00:08.4]} 29... Rd8 {[%clk 0:00:12.1]} 30. Qc2 {[%clk 0:00:06.3]}
30... Rxd1 {[%clk 0:00:10]} 31. Qxd1 {[%clk 0:00:07.2]} 31... g6 {[%clk
0:00:09.1]} 32. Qd4 {[%clk 0:00:06.5]} 32... c5 {[%clk 0:00:07.6]} 33. bxc5
{[%clk 0:00:05.5]} 33... bxc5 {[%clk 0:00:07.9]} 34. Qe3 {[%clk 0:00:05.3]}
34... c4 {[%clk 0:00:06.2]} 0-1

[Event "Early-Titled-Tuesday-Blitz-January-16-2024"]
[Site "Chess.com"]
[Date "2024.01.16"]
[Round "8"]
[White "Zampronha1971"]
[Black "UNSTOPPABLE_LEGEND"]
[Result "0-1"]
[WhiteElo "2345"]
[BlackElo "2511"]
[TimeControl "180+1"]
[EndTime "9:32:37 PST"]
[Termination "UNSTOPPABLE_LEGEND won on time"]

1. e4 {[%clk 0:02:59.1]} 1... c5 {[%clk 0:02:55.8]} 2. Nf3 {[%clk 0:02:58.8]}
2... d6 {[%clk 0:02:56.5]} 3. d4 {[%clk 0:02:59.3]} 3... cxd4 {[%clk 0:02:57.4]}
4. Nxd4 {[%clk 0:02:59.5]} 4... Nf6 {[%clk 0:02:58.3]} 5. Nc3 {[%clk 0:02:59.7]}
5... a6 {[%clk 0:02:59.2]} 6. Bg5 {[%clk 0:02:59.8]} 6... e6 {[%clk 0:02:59]} 7.
f4 {[%clk 0:03:00.3]} 7... Be7 {[%clk 0:02:58.6]} 8. Qf3 {[%clk 0:03:00.4]} 8...
Qc7 {[%clk 0:02:58.6]} 9. O-O-O {[%clk 0:03:00.5]} 9... Nbd7 {[%clk 0:02:58.3]}
10. Bd3 {[%clk 0:03:00.9]} 10... b5 {[%clk 0:02:55.9]} 11. Rhe1 {[%clk
0:02:55.4]} 11... Bb7 {[%clk 0:02:55.6]} 12. Qg3 {[%clk 0:02:50.3]} 12... b4
{[%clk 0:02:42.8]} 13. Nd5 {[%clk 0:02:50.2]} 13... exd5 {[%clk 0:02:43.7]} 14.
exd5 {[%clk 0:02:49.5]} 14... Kd8 {[%clk 0:02:13.8]} 15. Nc6+ {[%clk 0:02:49.5]}
15... Bxc6 {[%clk 0:02:13]} 16. dxc6 {[%clk 0:02:50.4]} 16... Nc5 {[%clk
0:02:12.8]} 17. Bc4 {[%clk 0:02:34.4]} 17... Qxc6 {[%clk 0:02:07.6]} 18. Bxf6
{[%clk 0:01:58.3]} 18... Bxf6 {[%clk 0:02:07.4]} 19. Bd5 {[%clk 0:01:58.4]}
19... Qa4 {[%clk 0:02:06.8]} 20. Bxa8 {[%clk 0:01:49.6]} 20... Qxa2 {[%clk
0:02:06.4]} 21. Rxd6+ {[%clk 0:01:43.8]} 21... Kc7 {[%clk 0:02:06.1]} 22. Rxf6
{[%clk 0:01:28.3]} 22... gxf6 {[%clk 0:02:07]} 23. f5+ {[%clk 0:01:26.2]} 23...
Kc8 {[%clk 0:02:05]} 24. Qd6 {[%clk 0:00:53.9]} 24... Qa1+ {[%clk 0:01:20.7]}
25. Kd2 {[%clk 0:00:53.3]} 25... Qa5 {[%clk 0:01:21.6]} 26. Qc6+ {[%clk
0:00:27.6]} 26... Kb8 {[%clk 0:01:20.6]} 27. Re8+ {[%clk 0:00:27.5]} 27... Rxe8
{[%clk 0:01:19.5]} 28. Qxe8+ {[%clk 0:00:28.3]} 28... Ka7 {[%clk 0:01:20.4]} 29.
Bd5 {[%clk 0:00:21]} 29... b3+ {[%clk 0:01:07]} 30. c3 {[%clk 0:00:21.2]} 30...
Qc7 {[%clk 0:01:04.3]} 31. Qxf7 {[%clk 0:00:20.9]} 31... Qxf7 {[%clk 0:01:02.2]}
32. Bxf7 {[%clk 0:00:21.8]} 32... Kb6 {[%clk 0:01:02]} 33. g4 {[%clk 0:00:19.6]}
33... Kc6 {[%clk 0:01:01.4]} 34. h4 {[%clk 0:00:18.5]} 34... h6 {[%clk
0:01:01.8]} 35. Bc4 {[%clk 0:00:16.7]} 35... Kd6 {[%clk 0:01:01]} 36. Ke3 {[%clk
0:00:16.4]} 36... Ke5 {[%clk 0:01:01.2]} 37. Kf3 {[%clk 0:00:12.5]} 37... a5
{[%clk 0:01:01.2]} 38. Ke3 {[%clk 0:00:12.4]} 38... a4 {[%clk 0:01:00.5]} 39.
Kf3 {[%clk 0:00:10.8]} 39... a3 {[%clk 0:00:37.6]} 40. bxa3 {[%clk 0:00:10.4]}
40... b2 {[%clk 0:00:37.5]} 41. Ba2 {[%clk 0:00:10.4]} 41... Ne4 {[%clk
0:00:38.1]} 42. a4 {[%clk 0:00:07]} 42... Nxc3 {[%clk 0:00:37.5]} 43. a5 {[%clk
0:00:02.7]} 43... Nxa2 {[%clk 0:00:37.5]} 44. a6 {[%clk 0:00:03.5]} 44... b1=Q
{[%clk 0:00:37.9]} 0-1

[Event "Early-Titled-Tuesday-Blitz-January-16-2024"]
[Site "Chess.com"]
[Date "2024.01.16"]
[Round "8"]
[White "Iball95"]
[Black "Yaacovn"]
[Result "1-0"]
[WhiteElo "2766"]
[BlackElo "2875"]
[TimeControl "180+1"]
[EndTime "9:32:42 PST"]
[Termination "Iball95 won by resignation"]

1. e4 {[%clk 0:03:00.9]} 1... c6 {[%clk 0:03:00.2]} 2. c4 {[%clk 0:02:59.3]}
2... d5 {[%clk 0:03:01.1]} 3. exd5 {[%clk 0:02:57.2]} 3... Nf6 {[%clk
0:03:00.9]} 4. d4 {[%clk 0:02:57.2]} 4... cxd5 {[%clk 0:03:00.8]} 5. Nc3 {[%clk
0:02:57.7]} 5... e6 {[%clk 0:02:58.1]} 6. c5 {[%clk 0:02:57.2]} 6... Ne4 {[%clk
0:02:57.5]} 7. Qc2 {[%clk 0:02:55.4]} 7... f5 {[%clk 0:02:57.2]} 8. Bf4 {[%clk
0:02:43.3]} 8... Be7 {[%clk 0:02:54.5]} 9. f3 {[%clk 0:02:41.4]} 9... Nf6 {[%clk
0:02:51.7]} 10. Bb5+ {[%clk 0:02:38.7]} 10... Bd7 {[%clk 0:02:46.7]} 11. Nge2
{[%clk 0:02:33.6]} 11... O-O {[%clk 0:02:44.7]} 12. O-O {[%clk 0:02:33.4]} 12...
a6 {[%clk 0:02:37.5]} 13. Bd3 {[%clk 0:02:23.8]} 13... Nc6 {[%clk 0:02:37]} 14.
a3 {[%clk 0:02:23.9]} 14... Re8 {[%clk 0:01:48.9]} 15. b4 {[%clk 0:02:23.5]}
15... Bf8 {[%clk 0:01:43.2]} 16. Kh1 {[%clk 0:02:23.1]} 16... g6 {[%clk
0:01:42.9]} 17. Rab1 {[%clk 0:02:22.1]} 17... Bg7 {[%clk 0:01:43.1]} 18. a4
{[%clk 0:02:18.5]} 18... e5 {[%clk 0:01:39.1]} 19. dxe5 {[%clk 0:02:18]} 19...
Nxe5 {[%clk 0:01:39.3]} 20. Rfd1 {[%clk 0:02:10.7]} 20... Qe7 {[%clk 0:01:35.6]}
21. Nd4 {[%clk 0:01:53.9]} 21... Nh5 {[%clk 0:01:10.7]} 22. Nxd5 {[%clk
0:01:47.5]} 22... Qh4 {[%clk 0:01:10.6]} 23. g3 {[%clk 0:01:44.5]} 23... Nxg3+
{[%clk 0:01:03.2]} 24. Bxg3 {[%clk 0:01:45.4]} 24... Qxd4 {[%clk 0:01:03]} 25.
Be2 {[%clk 0:01:07.9]} 25... Nc6 {[%clk 0:00:59.1]} 26. Rxd4 {[%clk 0:01:02.5]}
26... Nxd4 {[%clk 0:00:58.5]} 27. Qc4 {[%clk 0:00:53.1]} 27... Be6 {[%clk
0:00:58.4]} 28. Bf1 {[%clk 0:00:41.8]} 28... Rad8 {[%clk 0:00:57.9]} 29. Bd6
{[%clk 0:00:41.3]} 29... Nxf3 {[%clk 0:00:50.4]} 30. Rd1 {[%clk 0:00:38.1]}
30... Ng5 {[%clk 0:00:44.7]} 31. Bg2 {[%clk 0:00:36.8]} 31... Ne4 {[%clk
0:00:44.9]} 32. Bxe4 {[%clk 0:00:31.5]} 32... fxe4 {[%clk 0:00:45.8]} 33. Qxe4
{[%clk 0:00:32.2]} 33... Bf5 {[%clk 0:00:42.7]} 34. Ne7+ {[%clk 0:00:30.1]}
34... Kh8 {[%clk 0:00:41.3]} 35. Qxb7 {[%clk 0:00:26.9]} 35... Rd7 {[%clk
0:00:38.8]} 36. Qc6 {[%clk 0:00:20.5]} 36... Bg4 {[%clk 0:00:17.8]} 37. Rg1
{[%clk 0:00:19.6]} 37... Be6 {[%clk 0:00:15.2]} 38. Re1 {[%clk 0:00:19.6]} 38...
Bf5 {[%clk 0:00:08.2]} 39. Re2 {[%clk 0:00:16.1]} 39... h5 {[%clk 0:00:07]} 40.
Nxf5 {[%clk 0:00:15.4]} 40... Rxe2 {[%clk 0:00:06]} 41. Qxd7 {[%clk 0:00:15.6]}
1-0